Workbook

Sheet Rates Estimation
B2: APPOINTMENT OF EXTERNAL ASSURANCE PROVIDER : OTHER AUDIT RELATED SERVICES
B3: PROPOSED BUDGET
B7: 1. RATES ESTIMATION
B9: Based on National Treasury Instruction Note 3 of 2017-18 on cost containment measures, the appointment of an external assurance provider would constitute the engagement of professional service providers (consultants) and as such, paragraph 4.3 and 4.6 are applicable:
B20: In order to determine a fair and reasonable remuneration framework for this appointment , the Circular 01/2023/24 "Guideline on fees for audits done on behalf of the Auditor General of South Africa (AGSA)" is to be used as a basis and guidance for the determination of rates per professional level of the assurance providers team.
B21: These rates are then to be adjusted to reflect the time period of the appointment
B23: ENTER RATE PER HOUR PER PROFESSIONAL LEVEL: | C23: Year 1 | D23: Year 2 | E23: Year 3
C24: 2023 - 2024 | D24: 2024 - 2025 | E24: 2025 - 2026
B25: Professional Level: | C25: Rate per Hour (Excl VAT) | D25: Rate per Hour (Excl VAT) | E25: Rate per Hour (Excl VAT)
B26: Engagement Partner CA (SA)/LLB/ACFE/ ICFP or other relevant qualifications | D26: =+C26*1.05 -> 0 | E26: 0
B27: Senior Manager/Specialist CA (SA)/LLB/ACFE/ ICFP or other relevant qualifications | D27: 0 | E27: 0
B28: Audit Manager CA (SA)/LLB/ACFE/ ICFP or other relevant qualifications | D28: 0 | E28: 0
B29: Assistant Manager /Audit Senior / Supervisor (APC (QE2) RGA FQE (Final qualifying exam) ACCA P1 + P7) | D29: 0 | E29: 0
B30: Trainees (Bcom degree, Honours, CTA, ITC (QE1) or RGA FQE(Mid Rate ) | D30: 0 | E30: 0
B32: Assumptions Used :
B33: Regulatory Audit Charge (RA) Rates - 3 year Training Programme
B34: Professional Level of composition
B35: Travel and Subsistence Disbursements shall be capped at approximately 7.5% of audit service costs incurred
B37: Assumed learning rate of 90% in year 2
B38: Inflationary increases aligned to Rand Water's 5 Year Budget Plan
B39: Assumed at 5% to be adjusted - In line with the below 3 year CPI projections.

Sheet Proposed Pricing
A1: PRICING STRUCTURE : APPOINTMENT OF EXTERNAL ASSURANCE PROVIDER : OTHER AUDIT RELATED SERVICES
A2: PRICING STRUCTURE FOR SUSTAINABILITY REPORTING REVIEW
C3: Year 1 (2023-2024) | F3: Year 2 (2024-2025) | I3: Year 3 (2025-2026) | L3: TOTAL PROPOSED COSTING | M3: COMMENTS
A4: AUDIT TEAM COMPOSITION | B4: PAX | C4: EST HOURS | D4: EST RATE | E4: TOTAL | F4: EST HOURS | G4: EST RATE | H4: TOTAL | I4: EST HOURS | J4: EST RATE | K4: TOTAL
A5: Engagement Partner | B5: =+'[1]Cost Estimates'!D27 -> 1 | C5: 6 | D5: =+'Rates Estimation'!$C$26 -> 0 | E5: =C5*D5 -> 0 | I5: =+C5 -> 6 | J5: =+'Rates Estimation'!$E$26 -> 0 | K5: =I5*J5 -> 0 | L5: =E5+H5+K5 -> 0
A6: Senior Manager | B6: =+'[1]Cost Estimates'!D28 -> 1 | C6: 8 | D6: =+'Rates Estimation'!$C$27 -> 0 | E6: =C6*D6 -> 0 | I6: =+C6 -> 8 | J6: =+'Rates Estimation'!$E$27 -> 0 | K6: =I6*J6 -> 0 | L6: =E6+H6+K6 -> 0
A7: Audit Manager | B7: =+'[1]Cost Estimates'!D29 -> 1 | C7: 10 | D7: =+'Rates Estimation'!$C$28 -> 0 | E7: =C7*D7 -> 0 | I7: 10 | J7: =+'Rates Estimation'!$E$28 -> 0 | K7: 0 | L7: 0
A8: Assistant Manager | B8: 1 | C8: 12 | D8: =+'Rates Estimation'!$C$29 -> 0 | E8: =C8*D8 -> 0 | I8: 12 | J8: =+'Rates Estimation'!$E$29 -> 0 | K8: 0 | L8: 0
A9: Trainees | B9: 3 | C9: 45 | D9: =+'Rates Estimation'!$C$30 -> 0 | E9: =C9*D9 -> 0 | I9: 45 | J9: =+'Rates Estimation'!$E$30 -> 0 | K9: 0 | L9: 0
A10: SUBTOTAL (EXCL VAT) | C10: =SUM(C5:C9) -> 81 | E10: =SUM(E5:E9) -> 0 | I10: =SUM(I5:I9) -> 81 | K10: =SUM(K5:K9) -> 0 | L10: =SUM(L5:L9) -> 0
A11: Travel and Subsistence Disbursements | B11: 7.5% | E11: =E10*B11 -> 0 | K11: =K10*B11 -> 0 | L11: =E11+H11+K11 -> 0
A12: PRICING STRUCTURE (EXCL VAT) | E12: =SUM(E10:E11) -> 0 | K12: =SUM(K10:K11) -> 0 | L12: =SUM(L10:L11) -> 0 | M12: *Place these amounts on RFQ - section 3.3
A13: VAT | E13: =E12*15% -> 0 | K13: =K12*15% -> 0 | L13: =L12*15% -> 0
A14: TOTAL PRICING STRUCTURE (INCL VAT) | E14: =E12+E13 -> 0 | K14: =SUM(K12:K13) -> 0 | L14: =L12+L13 -> 0
A16: PRICING STRUCTURE FOR CONSOLIDATED INTERIM FINANCIAL STATEMENTS REVIEW
C17: Year 1 (2023-2024) | F17: Year 2 (2024-2025) | I17: Year 3 (2025-2026) | L17: TOTAL PROPOSED COSTING | M17: COMMENTS
A18: AUDIT TEAM COMPOSITION | B18: PAX | C18: EST HOURS | D18: EST RATE | E18: TOTAL | F18: EST HOURS | G18: EST RATE | H18: TOTAL | I18: EST HOURS | J18: EST RATE | K18: TOTAL
A19: Engagement Partner | B19: =+'[1]Cost Estimates'!D5 -> 1 | C19: 10 | D19: =+'Rates Estimation'!$C$26 -> 0 | E19: =C19*D19*B19 -> 0 | F19: =+C19*90% -> 9 | G19: =+'Rates Estimation'!$D$26 -> 0 | H19: =F19*G19 -> 0 | I19: =+F19 -> 9 | J19: =+'Rates Estimation'!$E$26 -> 0 | K19: =I19*J19 -> 0 | L19: =E19+H19+K19 -> 0
A20: Senior Manager | B20: =+'[1]Cost Estimates'!D6 -> 1 | C20: 12 | D20: =+'Rates Estimation'!$C$27 -> 0 | E20: =C20*D20 -> 0 | F20: =+C20*90% -> 11 | G20: =+'Rates Estimation'!$D$27 -> 0 | H20: =F20*G20 -> 0 | I20: =+F20 -> 11 | J20: =+'Rates Estimation'!$E$27 -> 0 | K20: =I20*J20 -> 0 | L20: =E20+H20+K20 -> 0
A21: Audit Manager | B21: =+'[1]Cost Estimates'!D7 -> 1 | C21: 28 | D21: =+'Rates Estimation'!$C$28 -> 0 | E21: =C21*D21 -> 0 | F21: 25 | G21: =+'Rates Estimation'!$D$28 -> 0 | H21: 0 | I21: =+F21 -> 25 | J21: =+'Rates Estimation'!$E$28 -> 0 | K21: 0 | L21: 0
A22: Assistant Manager | B22: =+'[1]Cost Estimates'!D8 -> 2 | C22: 140 | D22: =+'Rates Estimation'!$C$29 -> 0 | E22: 0 | F22: 126 | G22: =+'Rates Estimation'!$D$29 -> 0 | H22: 0 | I22: =+F22 -> 126 | J22: =+'Rates Estimation'!$E$29 -> 0 | K22: 0 | L22: 0
A23: Trainees | B23: =+'[1]Cost Estimates'!D9 -> 4 | C23: 520 | D23: =+'Rates Estimation'!$C$30 -> 0 | E23: 0 | F23: 468 | G23: =+'Rates Estimation'!$D$30 -> 0 | H23: 0 | I23: =+F23 -> 468 | J23: =+'Rates Estimation'!$E$30 -> 0 | K23: 0 | L23: 0
A24: SUBTOTAL (EXCL VAT) | C24: =SUM(C19:C23) -> 710 | E24: =SUM(E19:E23) -> 0 | F24: =SUM(F19:F23) -> 639 | H24: =SUM(H19:H23) -> 0 | I24: =SUM(I19:I23) -> 639 | K24: =SUM(K19:K23) -> 0 | L24: =SUM(L19:L23) -> 0
A25: Travel and Subsistence Disbursements | B25: 7.5% | E25: =E24*B25 -> 0 | H25: =H24*B25 -> 0 | K25: =K24*B25 -> 0 | L25: =E25+H25+K25 -> 0
A26: PRICING STRUCTURE (EXCL VAT) | E26: =SUM(E24:E25) -> 0 | H26: =SUM(H24:H25) -> 0 | K26: =SUM(K24:K25) -> 0 | L26: =SUM(L24:L25) -> 0 | M26: *Place these amounts on RFQ - section 3.3
A27: VAT | E27: =E26*15% -> 0 | H27: =H26*15% -> 0 | K27: =K26*15% -> 0 | L27: =L26*15% -> 0
A28: TOTAL PRICING STRUCTURE (INCL VAT) | E28: =E26+E27 -> 0 | H28: =SUM(H26:H27) -> 0 | K28: =SUM(K26:K27) -> 0 | L28: =L26+L27 -> 0
A30: PRICING STRUCTURE FOR OTHER AUDIT RELATED SERVICES
C31: Year 1 (2023-2024) | F31: Year 2 (2024-2025) | I31: Year 3 (2025-2026) | L31: TOTAL PROPOSED COSTING | M31: COMMENTS
A32: AUDIT TEAM COMPOSITION | B32: PAX | C32: EST HOURS | D32: EST RATE | E32: TOTAL | F32: EST HOURS | G32: EST RATE | H32: TOTAL | I32: EST HOURS | J32: EST RATE | K32: TOTAL
A33: Engagement Partner | B33: =+'[1]Cost Estimates'!D38 -> 1 | C33: 5 | D33: =+'Rates Estimation'!$C$26 -> 0 | E33: =C33*D33 -> 0 | F33: =+C33*90% -> 5 | G33: =+'Rates Estimation'!$D$26 -> 0 | H33: =F33*G33 -> 0 | I33: =+F33 -> 5 | J33: =+'Rates Estimation'!$E$26 -> 0 | K33: =I33*J33 -> 0 | L33: =E33+H33+K33 -> 0
A34: Senior Manager | B34: =+'[1]Cost Estimates'!D39 -> 1 | C34: 6 | D34: =+'Rates Estimation'!$C$27 -> 0 | E34: 0 | F34: =+C34*90% -> 5 | G34: =+'Rates Estimation'!$D$27 -> 0 | H34: =F34*G34 -> 0 | I34: =+F34 -> 5 | J34: =+'Rates Estimation'!$E$27 -> 0 | K34: =I34*J34 -> 0 | L34: =E34+H34+K34 -> 0
A35: Audit Manager | B35: =+'[1]Cost Estimates'!D40 -> 1 | C35: 8 | D35: =+'Rates Estimation'!$C$28 -> 0 | E35: 0 | F35: 7 | G35: =+'Rates Estimation'!$D$28 -> 0 | H35: 0 | I35: =+F35 -> 7 | J35: =+'Rates Estimation'!$E$28 -> 0 | K35: 0 | L35: 0
A36: Assistant Manager | B36: 0 | C36: 0 | D36: =+'Rates Estimation'!$C$29 -> 0 | E36: 0 | F36: 0 | G36: =+'Rates Estimation'!$D$29 -> 0 | H36: =F36*G36 -> 0 | I36: =+F36 -> 0 | J36: =+'Rates Estimation'!$E$29 -> 0 | K36: 0 | L36: 0
A37: Trainees | B37: 2 | C37: 10 | D37: =+'Rates Estimation'!$C$30 -> 0 | E37: 0 | F37: 9 | G37: =+'Rates Estimation'!$D$30 -> 0 | H37: 0 | I37: =+F37 -> 9 | J37: =+'Rates Estimation'!$E$30 -> 0 | K37: 0 | L37: 0
A38: SUBTOTAL (EXCL VAT) | C38: =SUM(C33:C37) -> 29 | E38: =SUM(E33:E37) -> 0 | F38: =SUM(F33:F37) -> 26 | H38: =SUM(H33:H37) -> 0 | I38: =SUM(I33:I37) -> 26 | K38: =SUM(K33:K37) -> 0 | L38: =SUM(L33:L37) -> 0
A39: Travel and Subsistence Disbursements | B39: 7.5% | E39: =E38*B39 -> 0 | H39: =H38*B39 -> 0 | K39: =K38*B39 -> 0 | L39: =E39+H39+K39 -> 0
A40: PRICING STRUCTURE (EXCL VAT) | E40: =SUM(E38:E39) -> 0 | H40: =SUM(H38:H39) -> 0 | K40: =SUM(K38:K39) -> 0 | L40: =SUM(L38:L39) -> 0 | M40: *Place these amounts on RFQ - section 3.3
A41: VAT | E41: =E40*15% -> 0 | H41: =H40*15% -> 0 | K41: =K40*15% -> 0 | L41: =L40*15% -> 0
A42: TOTAL PRICING STRUCTURE (INCL VAT) | E42: =E40+E41 -> 0 | H42: =SUM(H40:H41) -> 0 | K42: =SUM(K40:K41) -> 0 | L42: =L40+L41 -> 0
A45: Annual Cost EXCL VAT | E45: =+E26+E40+E12 -> 0 | H45: =+H26+H40+H12 -> 0 | K45: =+K26+K40+K12 -> 0
A46: Annual Cost INCL VAT | E46: =+E28+E42+E14 -> 0 | H46: =+H28+H42+H14 -> 0 | K46: =+K28+K42+K14 -> 0
L49: PRICING GRAND TOTAL
H50: EXCL VAT | L50: =+L26+L40+L12 -> 0
H51: INCL VAT | L51: =+L28+L42+L14 -> 0

Sheet Sheet2 (hidden)
B2: Cost Per Item PA | C2: 1 | D2: 2 | E2: 3 | F2: 4 | G2: 5 | H2: TOTAL
B3: STI AUP | C3: 250,000.00 | D3: 250,000.00 | E3: 250,000.00 | F3: 250,000.00 | G3: 250,000.00 | H3: =SUM(C3:G3) -> 1,250,000.00
B4: CIFS Review | C4: 350,000.00 | D4: 350,000.00 | E4: 350,000.00 | F4: 350,000.00 | G4: 350,000.00 | H4: =SUM(C4:G4) -> 1,750,000.00
B5: Other | D5: 300,000.00 | E5: 300,000.00 | F5: 300,000.00 | G5: 300,000.00 | H5: =SUM(C5:G5) -> 1,200,000.00
G6: TOTAL EXCL VAT | H6: =SUM(H3:H5) -> 4,200,000.00
G7: VAT | H7: =H6*15% -> 630,000.00
G8: TOTAL INCL VAT | H8: =SUM(H6:H7) -> 4,830,000.00
